bitfinex/quotes_ETHUSD_20260131
["timestamp","ask_amount","ask_price","bid_price","bid_amount"]
[1769879151421,0.28276505,2474.8,2473.2,0.01214402]
[1769879151717,0.28276505,2474.8,2473.8,0.01214402]
[1769879151879,0.28276505,2474.8,2474.0,1.01050929]
[1769879152080,0.28276505,2474.8,2474.1,0.50526742]
[1769879152726,0.28276505,2474.8,2474.2,0.847]
[1769879152936,1.29295518,2474.8,2474.2,0.847]
[1769879153216,15.29295518,2474.8,2473.2,0.01214402]
[1769879153420,15.29295518,2474.8,2473.3,0.847]
[1769879153604,14.0,2474.6,2472.7,0.01214402]
[1769879153805,14.0,2474.4,2472.5,0.01214402]
[1769879153982,14.0,2474.4,2472.4,1.01116324]
[1769879154184,14.0,2473.9,2472.2,0.0011]
[1769879154490,14.0,2473.9,2469.7,0.01214402]
[1769879154491,14.0,2473.0,2472.3,0.847]
[1769879154801,14.0,2473.7,2472.4,0.847]
[1769879155323,15.4,2473.7,2472.4,0.59031335]
[1769879155482,14.0,2473.7,2472.4,0.59031335]
[1769879155917,14.0,2473.5,2472.5,0.847]
[1769879156291,14.0,2473.5,2470.9,0.01214402]
[1769879156491,14.0,2473.5,2471.6,1.01145269]
[1769879156694,14.01214402,2473.3,2471.3,1.01158047]
[1769879156891,14.0,2472.9,2470.7,0.01214402]
[1769879157098,1.50228167,2473.4,2472.1,1.01126327]
[1769879157292,1.50228167,2473.4,2472.3,1.01117329]
[1769879157504,14.0,2473.6,2472.4,1.85815605]
[1769879157718,14.0,2473.6,2472.4,0.847]
[1769879157918,1.01071356,2473.5,2471.8,0.01214402]
[1769879158220,14.0,2473.5,2472.4,1.01114377]
[1769879158424,14.0,2473.5,2471.9,1.01134273]
[1769879158425,15.50106813,2473.5,2471.9,1.01134273]
[1769879158598,15.50106813,2473.5,2472.5,0.847]
[1769879158811,15.50106813,2473.5,2472.6,0.0011]
[1769879159010,15.65117494,2473.4,2472.7,0.847]
[1769879159213,14.0,2473.4,2472.7,0.847]
[1769879159923,14.0,2473.4,2472.6,0.0011]
[1769879160229,14.0,2473.4,2471.4,0.0011]
[1769879160230,13.49394581,2473.2,2471.4,0.0011]
[1769879160437,13.49394581,2473.2,2472.0,0.01214402]
[1769879160622,13.4903574,2473.8,2471.6,0.01214402]
[1769879160827,0.01214402,2472.1,2469.5,2.03650692]
[1769879161035,9.67391545,2470.3,2468.3,1.0128219]
[1769879161237,0.96739155,2470.2,2468.6,0.847]
[1769879161536,0.20987491,2469.5,2468.7,0.847]
[1769879161706,0.20987491,2469.5,2468.5,1.01272715]
[1769879161707,0.847,2468.7,2467.5,1.01316481]
[1769879161903,1.01247367,2469.2,2468.3,0.847]
[1769879162129,1.01247367,2469.2,2466.9,0.01214402]
[1769879162130,0.01215189,2468.9,2466.7,1.09981061]
[1769879162332,0.01215189,2469.0,2466.8,0.85915189]
[1769879162631,0.01215189,2468.6,2466.9,1.55946384]
[1769879162832,0.01215189,2468.1,2466.8,1.01345873]
[1769879163039,0.58925388,2469.3,2467.2,13.6356759]
[1769879163251,10.7479256,2470.4,2467.8,0.0121583]
[1769879163543,10.7479256,2470.4,2467.4,0.0121583]
[1769879163544,0.0121583,2469.9,2467.2,0.0121583]
[1769879163703,0.0121583,2469.1,2466.9,13.6356759]
[1769879163904,1.02462487,2469.3,2467.1,1.01333549]
[1769879164204,0.0121583,2469.0,2467.1,1.01333549]
[1769879164414,0.0121583,2468.6,2467.2,0.848]
[1769879164620,0.0121583,2467.6,2465.8,3.11225895]
[1769879164827,0.0121583,2467.8,2467.0,1.01337368]
[1769879165106,0.0121583,2468.8,2467.0,1.01337368]
[1769879165107,0.01215854,2469.4,2467.0,1.01337368]
[1769879165318,0.01215854,2468.6,2467.1,1.35590385]
[1769879165640,0.56346231,2469.2,2467.1,1.35590385]
[1769879165936,4.06139728,2469.7,2467.4,0.01215854]
[1769879165937,1.02446873,2469.6,2467.4,0.01215854]
[1769879166104,0.01215854,2469.6,2467.4,0.01215854]
[1769879166317,0.01215854,2469.5,2467.5,0.848]
[1769879166520,0.01215854,2469.1,2467.0,1.01335767]
[1769879166751,0.01215854,2468.4,2467.4,0.848]
[1769879167346,0.01215854,2469.8,2467.4,0.848]
[1769879167556,15.52515854,2469.8,2467.5,0.01215854]
[1769879167768,1.01189994,2470.6,2468.5,0.01215854]
[1769879167932,1.01202283,2470.3,2468.6,1.01271976]
[1769879168256,1.02412302,2470.5,2468.6,1.01271976]
[1769879168474,0.01215854,2471.0,2468.8,13.54588138]
[1769879168670,0.01215854,2471.8,2468.8,13.54588138]
[1769879168671,1.01136777,2471.9,2469.7,13.54588138]
[1769879168836,0.01215854,2472.8,2470.5,13.54588138]
[1769879169041,1.02298373,2473.3,2471.2,13.54588138]
[1769879169253,0.01215854,2473.7,2471.2,13.54588138]
[1769879169254,1.02286884,2473.6,2471.6,0.01215854]
[1769879169545,1.01031972,2474.5,2472.7,0.01215854]
[1769879169744,0.21152621,2475.9,2473.7,0.01215854]
[1769879169952,0.001,2475.9,2474.1,1.01046845]
[1769879170453,0.001,2475.9,2474.6,0.01215854]
[1769879170640,4.04881134,2477.4,2475.0,0.01215854]
[1769879170843,1.0091632,2477.3,2475.3,0.01215854]
[1769879171045,1.00895956,2477.8,2475.6,0.01215854]
[1769879171244,1.008756,2478.3,2476.2,0.01215854]
[1769879171453,9.6610931,2479.3,2476.2,0.01215854]
[1769879171454,4.24401877,2479.2,2476.8,0.01215854]
[1769879171659,1.00782068,2480.7,2477.7,0.01215854]
[1769879171857,18.50531805,2480.6,2478.4,0.01215854]
[1769879172069,18.50531805,2480.6,2478.3,0.01215854]
[1769879172070,1.02006049,2480.4,2478.5,0.848]
[1769879172238,1.00790195,2480.4,2478.5,0.848]
[1769879172663,5.98292167,2480.5,2478.5,0.848]
[1769879172664,4.02993984,2481.5,2479.0,0.01215854]
[1769879172868,0.5049513,2481.4,2479.5,0.01215854]
[1769879173069,0.5049513,2481.4,2479.7,0.01215854]
[1769879173272,1.00741457,2481.6,2479.8,0.848]
[1769879173765,30.0,2481.5,2478.4,1.00870925]
[1769879173966,1.00741457,2481.6,2479.3,1.02050767]
[1769879174136,0.50492314,2481.5,2479.6,0.01215854]
[1769879174335,0.50492314,2481.5,2479.5,0.01215854]
[1769879174672,0.50492314,2481.5,2479.6,0.01215854]
[1769879174967,4.02949591,2481.9,2480.1,0.01215854]
[1769879174968,1.00729279,2481.9,2480.1,0.01215854]
[1769879175168,1.00700878,2482.6,2480.6,0.01215854]
[1769879175368,1.01880238,2483.6,2481.1,0.01215854]
[1769879175540,1.01880238,2483.6,2480.9,0.01215854]
[1769879175541,34.02670142,2483.5,2480.9,0.01215854]
[1769879175738,0.1024,2483.3,2481.2,0.01215854]
[1769879175941,1.00672492,2483.3,2481.4,1.00749576]
[1769879176170,4.02654459,2483.6,2481.7,0.01215854]
[1769879176340,1.00664384,2483.5,2481.8,0.847]
[1769879176542,0.50331884,2483.4,2481.8,0.847]
[1769879176768,0.50331884,2483.4,2481.3,4.04214161]
[1769879176769,0.01215854,2483.3,2481.3,1.00751563]
[1769879176971,0.50331884,2483.4,2481.9,0.847]
[1769879177770,0.50331884,2483.4,2481.3,1.0075301]
[1769879177973,0.01215854,2482.3,2480.9,0.847]
[1769879178147,0.01215854,2482.0,2480.9,0.847]
[1769879178664,0.01215854,2482.0,2479.5,0.01215854]
[1769879178665,0.01215854,2481.5,2479.1,0.01215854]
[1769879178969,0.01215854,2481.3,2480.2,0.846]
[1769879179140,0.01215854,2481.2,2480.2,0.846]
[1769879179344,0.01215854,2480.8,2478.9,1.00849315]
[1769879179685,0.01215854,2480.7,2479.0,0.846]
[1769879179976,0.01215854,2481.1,2479.0,0.846]
[1769879179977,0.01215854,2481.5,2479.0,0.846]
[1769879180144,2.70399358,2481.4,2479.2,0.01215854]
[1769879180471,1.0074703,2481.5,2479.4,0.01215854]
[1769879180649,0.01215854,2481.0,2479.1,1.00843047]
[1769879180841,0.01215854,2481.0,2478.2,0.01215854]
[1769879180842,0.01215854,2480.7,2479.2,0.846]
[1769879181172,0.01215854,2480.7,2478.0,4.03545141]
[1769879181173,0.01215854,2480.0,2478.0,4.03545141]
[1769879181342,0.01215854,2479.9,2478.3,1.008752]
[1769879181542,0.55814528,2480.8,2478.5,1.00865211]
[1769879181751,0.01215854,2480.1,2478.1,0.846]
[1769879181952,0.01215854,2480.0,2478.6,1.00862828]
[1769879182264,1.02002905,2480.5,2478.5,4.03460687]
[1769879182581,0.01215854,2480.1,2478.1,0.846]
[1769879182879,0.54550924,2480.0,2478.4,1.00870525]
[1769879183170,1.56543102,2480.8,2478.5,0.5177466]
[1769879183376,1.00776324,2480.8,2478.7,0.01215854]
[1769879183575,0.001,2479.7,2478.4,1.00870525]
[1769879183774,0.001,2479.7,2478.5,0.846]
[1769879184003,0.001,2479.7,2478.5,0.85815854]
[1769879184224,0.001,2479.7,2478.6,1.02079244]
[1769879184373,0.001,2479.7,2478.6,1.0086339]
[1769879184702,1.0076582,2481.0,2478.8,0.01215854]
[1769879184909,0.01215854,2481.2,2479.0,0.01215854]
[1769879185125,1.00758686,2481.2,2479.0,0.01215854]
[1769879185406,0.50500533,2481.1,2479.2,0.01215854]
[1769879185577,0.01215854,2481.5,2479.2,0.01215854]
[1769879185578,1.0074869,2481.5,2479.4,0.01215854]
[1769879185892,1.0074869,2481.5,2479.0,0.01215854]
[1769879185893,0.01215854,2481.1,2478.5,4.04669416]
[1769879186094,1.01997922,2480.6,2478.7,0.846]
[1769879186296,0.01215854,2480.4,2478.7,0.846]
[1769879186610,0.01215854,2480.1,2478.8,0.846]
[1769879186776,0.01215854,2480.6,2478.8,0.846]
[1769879186977,0.01215854,2480.6,2478.5,4.03453562]
[1769879187194,0.01215854,2480.2,2478.6,0.846]
[1769879187382,0.01215854,2479.9,2478.7,0.846]
[1769879187723,0.01215854,2480.1,2478.7,0.846]
[1769879187875,0.01215854,2480.1,2477.7,4.04802813]
[1769879188208,0.01215854,2479.7,2477.7,4.03591129]
[1769879188508,0.01215854,2479.7,2477.6,1.009041]
[1769879188509,0.01215854,2479.0,2477.6,1.009041]
[1769879188708,0.01215854,2480.0,2477.8,13.54588138]
[1769879188912,1.02025848,2480.0,2477.8,13.53372284]
[1769879189118,0.01215854,2480.5,2477.7,0.01215854]
[1769879189119,0.4807923,2480.6,2478.3,0.01215854]
[1769879189309,0.01215854,2480.8,2478.7,0.01215854]
[1769879189490,0.01215854,2480.8,2478.9,0.01215854]
[1769879189817,0.01215854,2480.7,2479.0,0.846]
[1769879190124,1.00802387,2480.1,2479.1,1.00843047]
[1769879190316,0.01215854,2480.2,2479.1,1.00843047]
[1769879190495,0.01215854,2480.5,2479.1,1.00843047]
[1769879191023,1.01998107,2480.6,2479.1,1.00843047]
[1769879191202,0.01215854,2480.8,2479.1,1.00843047]
[1769879191705,1.01984496,2481.0,2479.1,1.00843047]
[1769879191885,0.01215854,2480.7,2479.1,1.00843047]
[1769879192089,1.02001985,2480.5,2479.1,1.00843047]
[1769879192319,0.54387122,2480.5,2479.1,1.00843047]
[1769879192504,0.01215854,2480.3,2479.1,1.00843047]
[1769879192895,0.01215854,2480.3,2478.9,1.00848468]
[1769879193105,0.01215854,2480.9,2479.1,13.53372284]
[1769879193290,1.00745977,2481.5,2479.6,0.01215854]
[1769879193490,1.00745977,2481.5,2479.1,13.53372284]
[1769879193491,30.51588658,2481.4,2479.1,13.53372284]
[1769879193692,0.50372804,2481.4,2479.1,13.53372284]
[1769879193891,0.01215854,2481.3,2479.1,13.53372284]
[1769879194098,1.01977612,2481.1,2479.0,1.8544663]
[1769879194301,0.5062405,2481.0,2479.1,0.01215854]
[1769879194492,0.51839904,2481.0,2479.0,1.8544663]
[1769879194692,0.01215854,2481.2,2479.4,0.01215854]
[1769879194893,0.01317053,2481.0,2479.1,13.53372284]
[1769879195093,0.01215854,2480.9,2479.0,1.8544663]
[1769879195323,0.02532907,2480.8,2479.0,1.8544663]
[1769879195494,0.01215854,2480.7,2479.0,1.8544663]
[1769879195698,0.001,2480.1,2479.0,1.8544663]
[1769879196009,0.01317053,2480.0,2479.0,0.846]
[1769879196193,0.01215854,2479.8,2479.0,0.846]
[1769879196398,0.01215854,2479.6,2479.0,0.4942]
[1769879196598,0.01215854,2479.4,2478.6,0.845]
[1769879196840,0.01317053,2479.3,2478.6,0.845]
[1769879197505,0.01315854,2480.1,2478.6,0.845]
[1769879197506,0.001,2480.1,2478.6,0.845]
[1769879197697,0.01215854,2479.8,2478.6,0.845]
[1769879197894,0.45529195,2480.0,2478.6,0.845]
[1769879198100,1.00810516,2479.9,2478.7,1.00859321]
[1769879198334,0.45529195,2479.8,2478.7,1.00859321]
[1769879198505,0.001,2480.1,2478.8,0.58879661]
[1769879198700,0.001,2480.1,2478.7,1.00859321]
[1769879198903,0.001,2480.1,2478.7,14.91636511]
[1769879199098,0.01215854,2481.7,2479.1,13.91993044]
[1769879199342,0.01215854,2481.4,2479.3,13.9077719]
[1769879199524,0.01215854,2481.7,2479.5,13.91993044]
[1769879199708,0.01215854,2481.7,2479.6,13.91993044]
[1769879199709,1.01955843,2481.7,2479.6,13.91993044]
[1769879200031,0.01215854,2481.8,2479.7,0.01215854]
[1769879200237,0.01215854,2482.0,2479.9,13.9077719]
[1769879200411,0.01215854,2481.9,2480.0,13.9077719]
[1769879202209,0.01215854,2481.9,2480.1,1.00802387]
[1769879202210,0.01215854,2481.5,2480.1,1.00802387]
[1769879202415,0.01215854,2481.3,2480.2,0.845]
[1769879203116,0.01215854,2481.3,2479.0,4.03386401]
[1769879203117,30.0,2481.2,2479.0,4.03386401]
[1769879203315,0.01215854,2480.6,2479.7,1.00816816]
[1769879203528,0.01215854,2480.6,2479.8,1.00813762]
[1769879203705,0.01215854,2480.8,2480.0,1.0080618]
[1769879203908,0.01215854,2481.0,2480.0,1.0080618]
[1769879204432,0.01215854,2481.0,2479.3,4.03333716]
[1769879204641,0.01215854,2480.7,2479.2,1.0083898]
[1769879205302,0.01215854,2480.5,2479.2,1.0083898]
[1769879205527,0.01215854,2479.8,2478.1,0.0011]
[1769879205730,0.01215854,2479.8,2478.7,4.03435896]
[1769879205943,0.01215854,2480.0,2478.8,1.00851696]
[1769879206145,0.01215854,2480.0,2479.0,1.00844603]
[1769879206349,0.01215854,2480.0,2478.5,4.03464166]
[1769879206511,0.55239436,2480.0,2478.6,0.845]
[1769879206843,30.54023582,2479.9,2478.6,0.845]
[1769879207056,3.06739798,2479.8,2478.4,1.00981055]
[1769879207212,0.55239436,2479.8,2478.7,0.845]
[1769879207608,0.50575058,2479.7,2479.2,0.0011]
[1769879207832,0.55239436,2479.8,2478.7,0.845]
[1769879208109,0.01215854,2479.4,2478.4,0.0011]
[1769879208305,0.48884276,2479.4,2478.5,0.845]
[1769879208510,0.01215854,2479.4,2478.5,0.845]
[1769879209210,0.01215854,2479.8,2478.5,1.85367339]
[1769879209407,0.01215854,2480.1,2478.5,1.85367339]
[1769879209626,8.538,2480.0,2478.5,1.85367339]
[1769879209826,30.0,2479.9,2478.4,0.0011]
[1769879210036,30.98414736,2479.9,2478.6,1.0086339]
[1769879210328,0.86647171,2480.0,2478.6,1.0086339]
[1769879210521,4.03225806,2480.1,2478.6,1.0086339]
[1769879210733,4.52609579,2480.7,2478.6,1.0086339]
[1769879210734,0.01215854,2480.6,2478.6,1.0086339]
[1769879210936,0.01215854,2480.6,2478.6,15.00522898]
[1769879212044,0.01215854,2479.9,2478.4,0.0011]
[1769879212341,0.43698437,2480.0,2478.5,1.85366973]
[1769879212539,1.02022305,2480.1,2478.4,0.0011]
[1769879212738,0.01215854,2479.7,2478.5,0.845]
[1769879213510,0.01215854,2479.7,2478.5,1.85367184]
[1769879213714,0.50646397,2480.0,2478.5,1.85367184]
[1769879213946,0.01215854,2480.9,2478.5,15.85026692]
[1769879214132,0.01215854,2480.9,2478.5,15.86242546]
[1769879214439,0.01215854,2480.9,2478.7,1.00859321]
[1769879214755,0.01215854,2480.4,2478.7,1.00859321]
[1769879214925,0.01215854,2480.3,2478.7,1.00859321]
[1769879215242,0.001,2480.8,2478.7,3.40048661]
[1769879215419,0.01215854,2480.4,2478.8,0.845]
[1769879215815,0.60466803,2480.7,2478.8,14.84159508]
[1769879216115,0.30364987,2480.6,2478.9,1.58623468]
[1769879216316,0.30364987,2480.6,2479.0,1.00847115]
[1769879216549,0.60466803,2480.7,2479.0,1.00847115]
[1769879217124,0.60466803,2480.7,2479.1,0.845]
[1769879218729,0.001,2480.8,2479.2,1.0083898]
[1769879219025,0.001,2480.8,2479.2,15.00498488]
[1769879220015,0.001,2480.8,2479.5,14.00875362]
[1769879220252,0.001,2480.8,2479.7,14.00875362]
[1769879220458,0.60439087,2481.9,2479.9,14.00875362]
[1769879220617,0.60439087,2481.9,2479.9,13.99659508]
[1769879220817,0.60442438,2481.7,2480.1,1.00802387]
[1769879221022,2.42985608,2481.8,2480.1,1.00802387]
[1769879221023,0.61657585,2481.8,2480.1,1.00802387]
[1769879221220,0.24420146,2481.7,2480.1,1.46719693]
[1769879221451,0.6043921,2481.9,2480.1,15.47595055]
[1769879221633,0.61646117,2482.2,2480.1,15.46379201]
[1769879221829,0.01215854,2482.1,2480.1,15.46379201]
[1769879222224,0.01215854,2482.1,2480.2,14.00875362]
[1769879222546,0.01215854,2482.1,2480.2,13.99659508]
[1769879222855,0.60435132,2482.0,2480.3,1.00794258]
[1769879223225,0.01215854,2482.6,2480.5,13.99659508]
[1769879223427,0.61629338,2482.9,2480.9,13.99659508]
[1769879223627,0.60409714,2483.1,2481.1,14.00875362]
[1769879223862,2.42846932,2483.2,2481.2,15.4831863]
[1769879223863,0.01215854,2483.2,2481.2,15.4831863]
[1769879224044,0.01215854,2483.3,2481.4,14.00875362]
[1769879224220,0.01215854,2483.4,2481.6,13.99659508]
[1769879224420,0.01215854,2483.5,2481.6,13.99659508]
[1769879224634,0.01215854,2483.5,2481.7,0.845]
[1769879224635,0.01215854,2483.2,2481.7,0.845]
[1769879224820,0.01215854,2483.2,2480.5,13.99659508]
[1769879224821,0.01215854,2482.9,2480.5,13.99659508]
[1769879225031,0.01215854,2482.2,2480.3,4.03172161]
[1769879225229,0.01215854,2482.3,2481.2,1.0075608]
[1769879225433,0.01215854,2482.5,2480.4,0.01215854]
[1769879225719,0.01215854,2481.6,2480.5,0.845]
[1769879226320,0.01215854,2481.5,2480.5,0.845]
[1769879226627,0.01215854,2481.5,2480.3,0.845]
[1769879226628,0.01215854,2481.0,2480.3,0.845]
[1769879226845,0.51600625,2481.0,2480.3,0.845]
[1769879227025,0.01215854,2481.0,2480.3,1.85294122]
[1769879227356,0.01215854,2481.0,2479.3,4.03290853]
[1769879227357,39.65712131,2480.9,2478.8,0.0011]
[1769879227669,15.86040483,2480.8,2479.4,0.845]
[1769879227860,3.97440483,2480.8,2479.4,0.845]
[1769879228063,0.50381665,2481.1,2480.1,1.00798964]
[1769879228226,0.50381665,2481.1,2479.9,4.03238346]
[1769879228227,0.50381665,2481.1,2479.5,1.00826695]
[1769879228428,30.0,2481.0,2479.1,1.00842837]
[1769879228661,3.05038167,2480.9,2479.1,1.00840266]
[1769879228828,0.1024,2480.6,2479.1,0.845]
[1769879229035,0.51870928,2480.5,2479.1,0.845]
[1769879229265,0.62110928,2480.6,2479.1,0.845]
[1769879229568,0.96571213,2480.6,2479.1,0.845]
[1769879229737,2.01480426,2481.7,2479.1,14.17223864]
[1769879229929,32.01480426,2481.7,2479.1,14.17223864]
[1769879230142,2.01443087,2482.1,2479.5,13.32723864]
[1769879230344,10.16052431,2483.2,2479.9,13.33939718]
[1769879230547,2.01383122,2482.9,2480.3,13.32723864]
[1769879230748,30.0,2482.8,2480.4,0.845]
[1769879230958,30.0,2482.8,2480.0,4.03211316]
[1769879230959,9.65712131,2482.7,2480.0,4.03211316]
[1769879231139,9.65712131,2482.1,2480.1,0.845]
[1769879231340,9.89069161,2481.8,2480.2,0.845]
[1769879231536,9.89069161,2481.8,2479.7,1.00817633]
[1769879231537,9.89069161,2481.2,2478.9,1.00848661]
[1769879231737,9.89069161,2481.2,2478.8,0.0011]
[1769879231738,0.1024,2480.8,2478.8,0.0011]
[1769879231977,30.0,2480.7,2478.9,0.845]
[1769879232145,0.1024,2480.6,2478.9,0.845]
[1769879232347,30.0,2480.5,2478.9,0.845]
[1769879232650,0.62110928,2480.4,2478.9,0.845]
[1769879232851,33.06211093,2480.3,2479.5,0.0011]
[1769879233052,30.51870928,2480.2,2478.9,0.845]
[1769879233234,33.05187093,2480.1,2478.9,0.845]
[1769879233432,30.0,2480.0,2478.9,0.845]
[1769879233653,30.51870928,2480.0,2478.9,0.845]
[1769879233865,3.05187093,2480.1,2478.9,0.845]
[1769879234075,30.0,2480.0,2478.9,0.845]
[1769879234374,0.51870928,2480.8,2478.9,0.845]
[1769879234568,0.1024,2481.3,2478.9,0.845]
[1769879234768,30.1024,2481.3,2478.9,0.845]
[1769879234965,0.1024,2481.1,2479.0,1.00847115]
[1769879235165,30.0,2481.0,2479.0,1.00847115]
[1769879235372,0.1024,2480.9,2479.0,1.00847115]
[1769879235568,30.51870928,2480.8,2479.0,1.00847115]
[1769879235782,6.81,2480.7,2479.0,1.00847115]
[1769879235968,0.681,2480.6,2479.0,1.00847115]
[1769879236175,0.1024,2480.9,2479.0,1.00847115]
[1769879236595,11.596,2480.8,2479.0,1.00847115]
[1769879236752,0.001,2481.8,2479.0,14.33570979]
[1769879236958,0.1024,2481.6,2479.0,14.33570979]
[1769879237177,30.0,2481.5,2479.0,14.33570979]
[1769879237373,3.0,2481.4,2479.1,1.92145944]
[1769879237572,0.001,2481.8,2479.1,15.26085662]
[1769879237786,0.1024,2481.6,2479.3,13.33939718]
[1769879238084,0.4078691,2482.8,2479.5,13.32723864]
[1769879238290,9.65603231,2483.4,2480.7,13.32723864]
[1769879238291,29.212,2482.6,2480.7,13.32723864]
[1769879238461,39.65603231,2483.3,2480.8,0.845]
[1769879238660,33.96560323,2483.2,2480.8,0.845]
[1769879238858,9.65603231,2483.0,2480.1,1.00802387]
[1769879239198,9.65603231,2482.8,2480.2,0.845]
[1769879239485,9.65603231,2482.8,2480.3,0.845]
[1769879239486,9.65603231,2482.7,2480.3,0.845]
[1769879239784,9.88960261,2482.5,2480.3,0.845]
[1769879240090,0.1024,2482.2,2480.3,0.845]
[1769879240278,30.0,2482.1,2480.3,0.845]
[1769879240993,30.0,2482.1,2480.4,1.00790195]
[1769879241153,30.0,2482.1,2480.3,0.845]
[1769879241350,0.1024,2481.9,2480.3,0.845]
[1769879241566,30.0,2481.8,2480.3,0.845]
[1769879241962,30.0,2481.8,2480.2,0.845]
[1769879242163,0.1024,2481.7,2479.6,1.0081937]
[1769879242473,0.1024,2481.5,2479.9,1.00807865]
[1769879242652,0.1024,2481.5,2479.5,1.00825261]
[1769879242653,27.772,2481.4,2479.5,1.00825261]
[1769879242854,27.772,2481.4,2479.6,0.845]
[1769879243085,2.78744,2481.3,2479.6,0.845]
[1769879243284,30.0,2481.2,2479.6,0.845]
[1769879243593,30.0,2481.2,2479.7,0.845]
[1769879243758,18.383,2481.2,2479.7,0.845]
[1769879243959,30.0,2481.2,2479.8,0.845]
[1769879244162,4.47593266,2483.0,2479.8,0.845]
[1769879244163,13.22478833,2483.8,2480.1,0.01215854]
[1769879244458,0.01215854,2484.4,2481.3,0.01215854]
[1769879244764,0.01215854,2483.4,2481.7,13.32723864]
[1769879244956,0.01215854,2483.4,2481.9,1.00729279]
[1769879245467,0.01215854,2483.6,2481.9,1.00729279]
[1769879245662,0.01215854,2483.6,2482.0,0.5881464]
[1769879245866,0.01215854,2483.7,2482.0,0.5881464]
[1769879246065,0.01215854,2483.7,2481.0,13.32723864]
[1769879246066,0.01215854,2483.3,2481.0,13.32723864]
[1769879246257,0.01215854,2482.1,2481.1,0.845]
[1769879246458,0.01215854,2483.2,2481.7,1.00736397]
[1769879246760,0.01215854,2483.2,2481.8,1.00732088]
[1769879246971,0.01215854,2483.2,2481.3,4.03006106]
[1769879247169,0.01215854,2482.6,2481.2,1.00757697]
[1769879247499,0.01215854,2481.3,2480.2,1.0079525]
[1769879247660,0.01215854,2481.3,2480.2,1.00795631]
[1769879247661,0.01215854,2481.2,2480.2,1.00795631]
[1769879248004,0.01215854,2481.0,2479.9,1.8530917]
[1769879248461,0.01215854,2481.0,2479.9,2.844885]
[1769879248955,0.01215854,2481.3,2479.9,2.844885]
[1769879249703,0.01215854,2481.9,2479.9,2.844885]
[1769879250198,0.01215854,2482.1,2479.9,2.85704354]
[1769879250405,0.01215854,2482.1,2480.1,0.01215854]
[1769879250560,0.01215854,2482.1,2480.1,1.62085993]
[1769879250765,0.01215854,2481.6,2480.2,0.845]
[1769879250990,0.01215854,2481.4,2479.9,1.999885]
[1769879251169,0.01215854,2480.8,2479.6,1.00820259]
[1769879251360,0.01215854,2480.2,2479.3,0.8461]
[1769879251688,0.01215854,2480.2,2479.3,1.85441924]
[1769879252087,0.01215854,2480.2,2479.3,0.0011]
[1769879252272,0.01215854,2480.4,2479.6,1.00821684]
[1769879252589,0.01215854,2480.4,2479.4,0.845]
[1769879252789,0.01215854,2480.1,2479.3,0.0011]
[1769879254306,0.01215854,2481.0,2479.3,0.0011]
[1769879254470,30.01215854,2480.5,2479.3,0.0011]
[1769879254673,0.01215854,2481.0,2479.3,0.0011]
[1769879254901,0.01215854,2480.6,2479.3,0.0011]
[1769879255069,0.01215854,2480.2,2479.3,0.0011]
[1769879255693,0.01215854,2480.1,2479.3,0.0011]
[1769879256516,0.01215854,2480.1,2479.6,0.0011]
[1769879256894,0.01215854,2480.3,2479.6,0.0011]
[1769879257298,0.48438913,2481.1,2479.6,0.0011]
[1769879257501,0.01215854,2480.6,2479.6,0.0011]
[1769879257900,0.01215854,2481.0,2479.6,0.0011]
[1769879258691,0.01215854,2481.0,2479.7,0.845]
[1769879258692,0.01215854,2480.8,2479.7,0.845]
[1769879258918,0.01215854,2480.6,2479.6,0.0011]
[1769879259117,0.01215854,2480.0,2479.6,0.0011]
[1769879259895,0.01215854,2480.3,2479.6,0.0011]
[1769879260099,0.01215854,2480.3,2479.4,0.0011]
[1769879260100,0.01215854,2479.8,2479.4,0.0011]
[1769879260416,0.01215854,2479.8,2479.3,0.0011]
[1769879260917,0.01215854,2479.4,2478.5,0.0011]
[1769879261098,0.01215854,2479.6,2478.5,0.0011]
[1769879261729,0.5744231,2480.1,2478.5,0.0011]
[1769879261900,0.01215854,2480.1,2478.5,0.0011]
[1769879262303,0.01215854,2482.4,2480.9,13.33943622]
[1769879262512,13.30313262,2483.6,2481.0,2.17894362]
[1769879262723,13.30313262,2483.5,2481.0,4.68423472]
[1769879263021,13.30313262,2484.2,2481.4,0.01215854]
[1769879263209,30.0,2484.1,2481.5,1.00745516]
[1769879263410,3.97440483,2484.0,2481.6,0.50494344]
[1769879263724,3.97440483,2484.0,2481.6,0.51710198]
[1769879263725,2.644,2483.9,2481.6,0.51710198]
[1769879263925,13.30313262,2484.2,2481.6,0.51710198]
[1769879264130,43.30313262,2484.1,2481.6,0.51710198]
[1769879264335,13.30313262,2484.1,2481.8,0.01215854]
[1769879264627,1.33031326,2484.0,2481.9,0.01215854]
[1769879264828,1.33031326,2484.0,2481.6,0.50494344]
[1769879265000,1.33031326,2484.0,2481.7,0.01215854]
[1769879265201,1.33031326,2484.0,2481.8,1.00733338]
[1769879265430,1.46334459,2483.9,2481.9,0.50488255]
[1769879265915,1.46334459,2483.9,2481.8,1.00733338]
[1769879265916,13.30313262,2483.6,2481.8,1.00733338]
[1769879266114,13.30313262,2483.6,2481.9,0.845]
[1769879266326,30.0,2483.5,2481.9,0.845]
[1769879266539,13.30313262,2483.4,2481.9,0.845]
[1769879266698,13.30313262,2483.2,2480.8,4.03085938]
[1769879266904,13.30313262,2483.0,2481.4,1.0074711]
[1769879267105,13.30313262,2483.0,2481.3,4.03000109]
[1769879267106,13.30313262,2482.8,2481.3,1.007516]
[1769879267303,13.30313262,2482.6,2480.2,4.03179478]
[1769879267606,16.702,2482.5,2480.3,0.845]
[1769879267827,13.30313262,2482.6,2480.3,0.845]
[1769879268024,30.75418307,2482.5,2480.4,0.48767948]
[1769879268333,43.30313262,2482.4,2480.4,0.48767948]
[1769879268629,30.0,2482.3,2480.4,0.48767948]
[1769879269037,10.028,2482.3,2480.4,0.48767948]
[1769879269240,13.30313262,2482.4,2480.5,1.00786131]
[1769879269420,1.40573157,2482.3,2480.6,0.55269861]
[1769879269617,0.75418307,2482.5,2480.6,0.55269861]
[1769879269818,13.30313262,2483.8,2480.9,0.01215854]
[1769879270019,17.39013262,2483.8,2481.3,0.01215854]
[1769879270206,7.16562847,2484.4,2481.3,0.01215854]
[1769879270207,7.16562847,2484.4,2481.5,0.01215854]
[1769879270537,0.1024,2484.3,2481.6,0.845]
[1769879271154,7.16562847,2484.4,2481.6,0.845]